bitfinex-derivatives/quotes_ETHF0:USTF0_20260306
["timestamp","ask_amount","ask_price","bid_price","bid_amount"]
[1772771402178,0.59049436,2076.3,2075.4,0.58671912]
[1772771403679,0.59049436,2076.5,2075.4,0.58671912]
[1772771403875,0.59049436,2076.3,2075.4,0.58671912]
[1772771410479,4.00244424,2076.6,2075.6,0.54710678]
[1772771410684,4.00244424,2076.6,2075.3,15.02108395]
[1772771410685,0.00603678,2076.9,2076.0,0.54710678]
[1772771410983,0.00603678,2076.9,2076.2,0.54710678]
[1772771411184,0.59653114,2076.9,2076.2,0.54710678]
[1772771419093,1.57561507,2076.6,2075.7,0.54710678]
[1772771419291,0.59049436,2076.4,2075.7,0.54710678]
[1772771420095,1.57561507,2076.3,2075.2,0.54710678]
[1772771420393,1.57561507,2076.3,2075.1,0.00547769]
[1772771420394,0.59049436,2076.1,2075.1,0.55258447]
[1772771420585,0.59049436,2075.9,2075.1,0.55258447]
[1772771422691,0.59049436,2075.9,2075.1,0.00547769]
[1772771422888,0.59049436,2075.3,2074.1,0.54710678]
[1772771423294,0.59049436,2075.0,2074.1,0.54710678]
[1772771423798,0.59574057,2075.0,2074.1,0.55238914]
[1772771424892,2.17135564,2075.0,2074.1,0.00528236]
[1772771425095,0.59049436,2074.6,2073.3,0.23901875]
[1772771425393,1.57561507,2073.7,2072.9,0.59754689]
[1772771425592,1.57561507,2074.2,2073.3,0.12745764]
[1772771425793,1.57561507,2074.2,2073.3,0.72500453]
[1772771426001,6.307,2074.1,2073.3,0.729132]
[1772771426193,6.307,2074.1,2073.3,0.13158511]
[1772771426396,1.57561507,2074.0,2073.3,0.13158511]
[1772771426594,6.307,2074.1,2072.8,0.59864064]
[1772771426801,0.16700704,2074.0,2072.8,0.59864064]
[1772771426999,0.16700704,2074.0,2072.9,15.01863105]
[1772771427296,3.9644494,2074.5,2072.8,0.59864064]
[1772771427297,6.308,2073.9,2072.8,15.52551902]
[1772771427497,6.308,2073.8,2072.8,15.52551902]
[1772771427800,6.308,2073.8,2072.8,15.53171003]
[1772771428391,6.309,2073.7,2072.8,15.53171003]
[1772771428596,6.308,2073.7,2072.8,15.53171003]
[1772771429395,0.24103,2074.3,2072.9,0.71270069]
[1772771429599,6.309,2074.7,2072.9,0.71270069]
[1772771429795,6.309,2074.6,2073.1,0.71270069]
[1772771429994,0.00524621,2075.0,2073.1,6.88668069]
[1772771430196,0.00524621,2075.0,2073.3,0.71650424]
[1772771430491,6.31524621,2075.0,2073.3,0.71650424]
[1772771430691,0.00524621,2075.0,2073.5,6.64817424]
[1772771430993,0.00524621,2075.0,2073.9,0.71646768]
[1772771431201,6.31,2075.9,2073.9,0.71646768]
[1772771431395,6.16439,2076.4,2074.1,0.71646768]
[1772771431603,6.16439,2076.4,2074.2,0.71646768]
[1772771431604,12.36423548,2076.3,2074.2,0.71646768]
[1772771431898,6.16514,2076.1,2074.3,0.71646768]
[1772771432101,6.05414902,2076.0,2074.3,0.72031027]
[1772771432299,0.24443663,2076.1,2074.3,0.72031027]
[1772771432499,12.36428926,2076.0,2074.5,0.68421862]
[1772771432699,6.31,2076.0,2074.5,0.68421862]
[1772771432899,6.31,2076.0,2074.6,14.84337487]
[1772771434200,6.31,2076.0,2074.6,15.52670549]
[1772771436900,6.31,2076.0,2074.7,0.68419941]
[1772771437099,0.24443663,2076.1,2074.7,0.68419941]
[1772771437299,12.36422164,2076.0,2074.8,15.52757428]
[1772771437601,6.309,2076.0,2074.8,0.68419941]
[1772771438502,0.24443663,2076.1,2074.8,0.68419941]
[1772771438702,12.36536542,2076.0,2074.9,15.529148]
[1772771438902,6.309,2076.0,2074.9,0.68577313]
[1772771439401,6.309,2075.9,2075.0,14.84337487]
[1772771439802,0.24443663,2076.1,2075.0,14.84337487]
[1772771440003,6.309,2075.8,2075.0,14.84337487]
[1772771440202,6.308,2075.7,2075.0,15.53283356]
[1772771441906,6.308,2075.7,2075.0,14.84337487]
[1772771442107,6.308,2075.7,2074.4,0.69162158]
[1772771442108,0.24088,2075.6,2074.4,0.69162158]
[1772771442903,0.32708646,2075.4,2074.4,0.69162158]
[1772771443107,0.32708646,2075.4,2074.3,0.00384259]
[1772771443408,0.34756414,2075.3,2074.3,0.00384259]
[1772771443608,0.34756414,2075.3,2074.3,0.68522533]
[1772771445407,0.23534897,2075.1,2074.3,0.00384259]
[1772771445711,0.23534897,2075.1,2073.2,0.24114]
[1772771445712,0.23150638,2074.7,2073.7,0.68546487]
[1772771445910,0.17834928,2074.5,2073.7,0.68546487]
[1772771446514,6.3131262,2074.5,2073.7,0.68928958]
[1772771446708,6.48720083,2074.5,2073.7,0.68928958]
[1772771446904,0.12170474,2074.4,2073.7,0.68928958]
[1772771447205,0.12170474,2074.4,2073.7,0.00382471]
[1772771447409,0.12170474,2074.4,2073.7,0.69243157]
[1772771447613,6.43282161,2074.5,2073.7,0.69243157]
[1772771448508,0.12482161,2074.5,2073.7,0.69243157]
[1772771448708,6.309,2074.4,2073.7,0.69243157]
[1772771451410,0.0051262,2074.5,2073.7,0.69243157]
[1772771451613,6.309,2074.9,2073.7,0.69243157]
[1772771451808,6.309,2075.1,2073.9,0.6911808]
[1772771452015,6.14281943,2075.0,2073.9,0.6911808]
[1772771452316,6.309,2075.1,2073.9,0.6911808]
[1772771452620,6.14551052,2075.0,2073.9,0.6911808]
[1772771452909,0.00577259,2075.1,2073.9,0.6911808]
[1772771453111,6.14583882,2075.0,2073.9,0.6911808]
[1772771453315,0.00577259,2075.1,2073.9,0.6911808]
[1772771453516,6.14614297,2075.0,2073.9,0.6911808]
[1772771453718,0.00577259,2075.1,2073.9,0.6911808]
[1772771453918,6.14566491,2075.0,2073.9,0.6911808]
[1772771454218,0.00577259,2075.1,2073.9,0.6911808]
[1772771454416,6.14596488,2075.0,2073.9,0.6911808]
[1772771454617,6.14532127,2074.9,2073.9,0.6911808]
[1772771454817,0.00577259,2075.1,2073.9,0.6911808]
[1772771455018,6.14539413,2075.0,2073.9,0.6911808]
[1772771455320,6.14539413,2074.9,2073.9,0.6911808]
[1772771455618,6.14539413,2074.8,2073.9,0.6911808]
[1772771455818,3.97022199,2075.1,2073.9,0.6911808]
[1772771456116,10.12192522,2075.1,2073.9,0.6911808]
[1772771457117,10.11615263,2075.0,2073.9,0.6911808]
[1772771457319,6.15170323,2074.9,2073.9,0.6911808]
[1772771457519,6.15170323,2074.8,2073.9,0.6911808]
[1772771457720,6.15170323,2074.7,2073.9,0.6911808]
[1772771457922,3.9644494,2075.0,2073.9,0.6911808]
[1772771458324,3.9644494,2074.9,2073.9,0.6911808]
[1772771459223,6.308,2074.8,2073.9,0.6911808]
[1772771459422,6.15829094,2074.7,2073.9,0.6911808]
[1772771460125,6.15829094,2074.6,2073.9,0.6911808]
[1772771460332,10.2724494,2074.9,2073.9,0.6911808]
[1772771460526,6.17235698,2074.8,2073.9,0.6911808]
[1772771460820,3.9644494,2075.0,2073.9,0.6911808]
[1772771461021,0.11190192,2075.0,2073.9,0.6911808]
[1772771461426,4.07635132,2075.0,2073.9,0.6911808]
[1772771461928,0.00577259,2075.1,2074.1,0.59063121]
[1772771462125,0.00577259,2075.1,2074.3,0.59063121]
[1772771462331,0.12163317,2075.1,2074.3,0.59063121]
[1772771462631,0.00577259,2075.1,2074.3,0.59063121]
[1772771469332,0.12679648,2075.1,2074.3,0.59063121]
[1772771471936,0.1167819,2075.0,2074.3,0.59063121]
[1772771472838,6.06878073,2074.9,2074.3,0.59063121]
[1772771473038,0.1167819,2075.0,2074.3,0.59063121]
[1772771473238,6.06877651,2074.9,2074.3,0.59063121]
[1772771473438,0.1167819,2075.0,2074.3,0.59063121]
[1772771473639,6.06861895,2074.9,2074.3,0.59063121]
[1772771473938,0.1167819,2075.0,2074.3,0.59063121]
[1772771474237,6.06924431,2074.9,2074.3,0.59063121]
[1772771474435,0.1167819,2075.0,2074.3,0.59063121]
[1772771474638,6.0691995,2074.9,2074.3,0.59063121]
[1772771474837,0.1167819,2075.0,2074.3,0.59063121]
[1772771475037,6.06919936,2074.9,2074.3,0.59063121]
[1772771475340,0.1167819,2075.0,2074.3,0.59063121]
[1772771475939,0.11976303,2075.1,2074.3,0.59063121]
[1772771476143,5.83042421,2075.0,2074.3,0.59063121]
[1772771476334,0.00577259,2075.1,2074.3,0.59063121]
[1772771480743,0.36132423,2075.1,2074.3,0.59063121]
[1772771485252,0.00577259,2075.1,2074.3,0.59063121]
[1772771486043,0.36199227,2075.0,2074.3,0.59063121]
[1772771488353,6.44550614,2074.9,2074.3,0.59063121]
[1772771488558,0.36132417,2074.9,2074.3,0.59063121]
[1772771489453,3.97022199,2075.1,2074.3,0.59063121]
[1772771489659,6.08594018,2075.0,2074.3,0.59063121]
[1772771489852,0.36700904,2075.1,2074.3,0.59063121]
[1772771490053,6.08687148,2075.0,2074.3,0.59063121]
[1772771490254,0.36700904,2075.1,2074.3,0.59063121]
[1772771490454,6.08595973,2075.0,2074.3,0.59063121]
[1772771490756,0.36700904,2075.1,2074.3,0.59063121]
[1772771490954,6.08603616,2075.0,2074.3,0.59063121]
[1772771491156,0.36700904,2075.1,2074.3,0.59063121]
[1772771491356,6.08756267,2075.0,2074.3,0.59063121]
[1772771491557,0.00577259,2075.1,2074.3,0.59063121]
[1772771491758,6.08774144,2075.0,2074.3,0.59063121]
[1772771492055,0.36694865,2075.1,2074.3,0.59063121]
[1772771492256,6.08772867,2075.0,2074.3,0.59063121]
[1772771492555,0.36694865,2075.1,2074.3,0.59063121]
[1772771492756,0.37511009,2074.9,2074.3,0.59063121]
[1772771493450,0.00577259,2075.1,2074.3,0.59063121]
[1772771493655,6.08771491,2075.0,2074.3,0.59063121]
[1772771493861,0.00577259,2075.1,2074.3,0.59063121]
[1772771494157,6.08771502,2075.0,2074.3,0.59063121]
[1772771494358,0.38246253,2075.1,2074.3,0.59063121]
[1772771494559,6.08826789,2075.0,2074.3,0.59063121]
[1772771494857,0.38246253,2075.1,2074.3,0.59063121]
[1772771495057,6.08828059,2075.0,2074.3,0.59063121]
[1772771495259,0.38246253,2075.1,2074.3,0.59063121]
[1772771495457,6.08871696,2075.0,2074.3,0.59063121]
[1772771495754,0.38246253,2075.1,2074.3,0.59063121]
[1772771495960,6.08875949,2075.0,2074.3,0.59063121]
[1772771496158,0.38246253,2075.1,2074.3,0.59063121]
[1772771496358,6.08893013,2075.0,2074.3,0.59063121]
[1772771496553,0.38246253,2075.1,2074.3,0.59063121]
[1772771496758,6.08892677,2075.0,2074.3,0.59063121]
[1772771496959,0.38246253,2075.1,2074.3,0.59063121]
[1772771497159,6.46721943,2075.0,2074.3,0.59063121]
[1772771497356,0.37829472,2075.0,2074.3,0.59063121]
[1772771498259,0.00577259,2075.1,2074.3,0.59063121]
[1772771498458,6.08938189,2075.0,2074.3,0.59063121]
[1772771498754,0.00577259,2075.1,2074.3,0.59063121]
[1772771499058,6.08951515,2075.0,2074.3,0.59063121]
[1772771499253,0.00577259,2075.1,2074.3,0.59063121]
[1772771499450,6.08962465,2075.0,2074.3,0.59063121]
[1772771499650,0.00577259,2075.1,2074.3,0.59063121]
[1772771499859,6.08961163,2075.0,2074.3,0.59063121]
[1772771500059,0.00577259,2075.1,2074.3,0.59063121]
[1772771500360,6.0877192,2075.0,2074.3,0.59063121]
[1772771500558,0.38319883,2075.1,2074.3,0.59063121]
[1772771500760,6.08814322,2075.0,2074.3,0.59063121]
[1772771500957,0.38319883,2075.1,2074.3,0.59063121]
[1772771501157,6.08768091,2075.0,2074.3,0.59063121]
[1772771501356,0.38319883,2075.1,2074.3,0.59063121]
[1772771502260,6.08899747,2075.0,2074.3,0.59063121]
[1772771502558,0.38319883,2075.1,2074.3,0.59063121]
[1772771502756,6.08785996,2075.0,2074.1,0.57821996]
[1772771502960,0.37745829,2074.8,2074.1,0.57821996]
[1772771503161,0.37745829,2074.6,2074.1,0.57821996]
[1772771503364,0.37745829,2074.6,2073.8,0.57821996]
[1772771505363,0.59596287,2074.4,2073.8,0.57821996]
[1772771509361,0.59596287,2074.9,2074.0,0.57821996]
[1772771509565,0.59596287,2074.7,2074.0,0.57821996]
[1772771512466,0.59596287,2074.7,2073.8,0.57821996]
[1772771512764,0.59596287,2074.5,2073.8,0.57821996]
[1772771518463,0.59596287,2074.5,2073.7,0.00382471]
[1772771518669,0.59596287,2074.3,2073.7,0.58204467]
[1772771522371,0.59708668,2074.7,2073.7,0.58204467]
[1772771526568,3.9644494,2075.0,2073.7,0.58204467]
[1772771526775,6.6679854,2074.9,2073.7,0.58204467]
[1772771527074,6.6679854,2074.8,2073.7,0.58204467]
[1772771527376,0.59708668,2074.8,2073.7,0.58204467]
[1772771532275,6.68206488,2074.7,2073.7,0.58204467]
[1772771532475,0.59708668,2074.7,2073.7,0.58204467]
[1772771536780,0.59708668,2074.5,2073.7,0.58204467]
[1772771538679,0.59708668,2074.3,2073.7,0.00382471]
[1772771540077,0.59708668,2074.3,2073.7,0.54202138]
[1772771540783,0.59708668,2074.3,2073.7,0.00382471]
[1772771541281,0.59708668,2074.3,2073.7,0.54202138]
[1772771541482,0.59708668,2074.3,2073.7,0.00382471]
[1772771542078,0.59708668,2074.3,2073.3,0.53819667]
[1772771542278,0.59708668,2074.1,2073.3,0.53819667]
[1772771543180,0.59708668,2074.1,2073.3,0.54235898]
[1772771545779,3.9644494,2074.5,2073.3,0.54235898]
[1772771545980,0.59708668,2074.2,2073.3,0.54235898]
[1772771550085,1.57888282,2074.4,2073.3,0.54235898]
[1772771550086,0.58094914,2074.0,2073.3,0.54235898]
[1772771550286,0.58094914,2074.0,2073.3,0.00416231]
[1772771550488,0.58094914,2074.3,2073.3,0.5481972]
[1772771550688,0.58094914,2074.3,2073.5,0.54403489]
[1772771558492,6.07502941,2074.2,2073.5,0.54403489]
[1772771558794,0.58094914,2074.3,2073.5,0.54403489]
[1772771558993,0.58094914,2074.1,2073.5,0.54403489]
[1772771559796,0.58094914,2074.1,2073.3,0.5481972]
[1772771559998,0.58094914,2073.9,2073.3,0.5481972]
[1772771560196,0.58094914,2073.9,2073.3,0.00416231]
[1772771560397,0.58094914,2073.9,2072.8,0.54403489]
[1772771560596,0.58094914,2073.7,2072.8,0.54403489]
[1772771561498,0.58094914,2073.7,2072.8,0.54838243]
[1772771564396,0.58094914,2073.9,2073.0,0.54403489]
[1772771564694,0.58094914,2073.9,2073.4,0.54403489]
[1772771566292,0.58094914,2074.3,2073.8,0.54403489]
[1772771574705,0.58094914,2074.7,2073.8,0.54403489]
[1772771574898,0.58094914,2074.5,2073.8,0.54403489]
[1772771580403,0.5691598,2074.8,2073.8,0.54403489]
[1772771581800,0.5691598,2075.0,2074.0,0.58878631]
[1772771582002,0.57493239,2075.1,2074.2,0.58878631]
[1772771585407,0.00577259,2075.1,2074.4,0.58878631]
[1772771585601,0.5691598,2075.3,2074.4,0.592572]
[1772771586708,0.57357929,2075.3,2074.4,0.592572]
[1772771587809,0.00441949,2075.3,2074.4,0.592572]
[1772771588406,0.57357929,2075.3,2074.4,0.592572]
[1772771588606,0.57357929,2075.3,2074.8,0.58878631]
[1772771591511,0.5691598,2075.5,2075.0,0.58878631]
[1772771591717,0.5691598,2075.5,2074.8,0.58878631]
[1772771592514,0.57394552,2075.5,2074.8,0.58878631]
[1772771595421,0.57394552,2075.5,2074.6,0.58878631]
[1772771595616,0.57394552,2075.5,2074.7,0.58878631]
[1772771598122,0.57394552,2075.5,2074.9,0.58878631]
[1772771602020,0.00478572,2075.5,2075.2,1.57643661]
[1772771602227,0.5691598,2075.9,2075.5,0.58878631]
[1772771602824,5.57468478,2076.4,2075.5,0.58878631]
[1772771602825,0.5691598,2076.3,2075.5,0.58878631]
[1772771603126,0.5691598,2076.1,2075.5,0.58878631]
[1772771606223,0.5691598,2076.1,2075.4,1.57643661]
[1772771606426,0.5691598,2075.9,2075.1,0.58878631]
[1772771607622,0.5691598,2076.1,2075.5,0.58878631]
[1772771610124,0.58122047,2076.2,2075.7,0.56471436]
[1772771610528,0.58122047,2076.2,2075.5,0.56471436]
[1772771620243,0.58583203,2076.3,2075.7,0.56471436]
[1772771621037,0.58583203,2076.3,2075.2,0.24092]
[1772771621038,0.00461156,2076.3,2075.9,0.56471436]
[1772771621237,0.00461156,2076.3,2075.9,0.56886445]
[1772771623545,0.58583203,2076.3,2075.9,0.56886445]
[1772771632345,0.00461156,2076.3,2075.9,0.56886445]
[1772771633043,0.58583203,2076.3,2075.9,0.56886445]
[1772771633346,0.58122047,2076.8,2075.9,0.56886445]
[1772771633551,0.58122047,2077.0,2075.9,0.56886445]
[1772771633843,6.08100933,2076.9,2075.9,0.56886445]
[1772771634049,0.58122047,2077.0,2075.9,0.56886445]
[1772771634245,6.08116304,2076.9,2075.9,0.56886445]
[1772771634445,0.58533042,2077.0,2076.1,0.56471436]
[1772771634647,0.58122047,2077.4,2076.5,0.56471436]
[1772771635248,0.58122047,2077.6,2076.5,0.56471436]
[1772771635641,0.58515435,2077.6,2076.5,0.56471436]
[1772771636449,0.58515435,2077.6,2076.8,0.56471436]
[1772771636656,0.00393388,2077.6,2076.8,0.56471436]
[1772771638555,0.58122047,2078.1,2076.8,0.56471436]
[1772771638749,0.58122047,2077.9,2076.8,0.56471436]
[1772771639453,0.58641453,2077.9,2076.8,0.56471436]
[1772771640352,0.58641453,2077.9,2076.5,0.53935884]
[1772771640353,0.55660775,2077.8,2076.5,0.53935884]
[1772771640655,0.55660775,2077.6,2076.5,0.53935884]
[1772771643357,0.55660775,2077.8,2076.8,0.53935884]
[1772771643660,0.56180181,2077.9,2077.1,0.53935884]
[1772771645058,0.00519406,2077.9,2077.1,0.53935884]
[1772771645960,0.56180181,2077.9,2077.1,0.53935884]
[1772771646161,0.56180181,2077.9,2076.9,0.53935884]
[1772771651364,0.00519406,2077.9,2077.0,0.53935884]
[1772771651564,0.00519406,2077.9,2077.2,0.53935884]
[1772771652165,0.55660775,2078.8,2077.2,0.53935884]
[1772771652467,0.55660775,2078.6,2077.2,0.53935884]
[1772771653166,0.56147886,2078.6,2077.4,0.53935884]
[1772771653469,0.00487111,2078.6,2077.6,0.53935884]
[1772771654069,0.55660775,2079.4,2077.8,0.53935884]
[1772771654459,0.55660775,2079.4,2077.7,0.24063]
[1772771654460,0.55660775,2079.4,2078.0,0.53935884]
[1772771655170,4.00235727,2079.8,2078.4,0.53935884]
[1772771655171,0.55660775,2079.8,2078.4,0.53935884]
[1772771655374,0.55660775,2079.8,2078.5,0.53935884]
[1772771656371,0.56248741,2079.8,2078.5,0.53935884]
[1772771658471,0.55660775,2079.6,2078.1,0.53935884]
[1772771659775,0.24043,2079.5,2078.1,0.53935884]
[1772771660070,0.55660775,2079.2,2077.7,0.24062]
[1772771660272,0.55660775,2079.2,2077.9,0.53935884]
[1772771660468,0.55660775,2079.2,2077.6,13.255]
[1772771660673,0.55660775,2079.2,2077.7,0.53935884]
[1772771660875,0.55660775,2079.0,2077.7,0.53935884]
[1772771661377,0.55660775,2078.8,2077.7,0.53935884]
[1772771662272,0.55660775,2078.6,2077.1,13.127]
[1772771662478,0.55660775,2078.4,2077.2,0.53935884]
[1772771663070,5.8883417,2078.3,2077.0,0.53935884]
[1772771663283,0.55660775,2078.2,2077.0,0.53935884]
[1772771664075,0.55660775,2078.0,2077.0,0.5435913]
[1772771667380,0.55660775,2078.0,2077.0,0.00423246]
[1772771667581,6.45316511,2077.9,2077.0,0.00423246]
[1772771667881,0.55660775,2077.7,2077.0,0.00423246]
[1772771668678,0.24061,2078.0,2076.2,0.53935884]
[1772771668679,0.55660775,2077.5,2076.2,0.53935884]
[1772771669681,5.89208151,2077.4,2076.2,0.54541526]
[1772771669883,0.58088609,2077.3,2076.2,0.54541526]
[1772771674081,0.24065,2077.6,2076.2,0.54541526]
[1772771674082,0.55687298,2077.1,2076.2,0.00605642]
[1772771676586,0.55687298,2077.1,2076.2,0.55357534]
[1772771682092,0.55687298,2077.5,2076.2,0.55357534]
[1772771682493,0.55687298,2077.5,2076.3,0.54751892]
[1772771688196,0.55687298,2077.5,2076.5,0.54751892]
[1772771689897,16.36825267,2078.2,2076.9,0.54751892]
[1772771689898,0.55687298,2078.1,2076.9,0.54751892]
[1772771691001,0.55687298,2077.9,2076.9,0.54751892]
[1772771695000,0.55687298,2077.7,2076.9,0.54751892]
[1772771695606,0.55687298,2077.7,2076.4,0.54751892]
[1772771695906,0.55687298,2077.5,2076.4,0.54751892]
[1772771697400,0.55687298,2077.3,2076.4,0.54751892]
[1772771699907,0.54221995,2077.1,2076.4,0.54751892]
[1772771702308,0.54221995,2077.3,2076.4,0.54751892]
[1772771707111,0.54221995,2077.5,2076.4,0.54751892]
[1772771707410,6.47432091,2077.4,2076.4,0.54751892]
[1772771707612,0.54221995,2077.4,2076.4,0.54751892]
[1772771708109,0.54221995,2077.2,2076.4,0.54751892]
[1772771715113,0.54221995,2077.0,2076.4,0.54751892]
[1772771720320,5.93148775,2076.9,2076.2,0.54612538]
[1772771720614,0.54221995,2076.8,2076.2,0.54612538]
[1772771724520,0.54221995,2077.0,2076.2,0.54612538]
[1772771724916,0.54221995,2076.8,2076.2,0.54612538]
[1772771727424,0.54221995,2077.0,2076.2,0.54612538]
[1772771727624,6.47826676,2076.9,2076.2,0.54612538]
[1772771727825,0.54221995,2076.9,2076.2,0.54612538]
[1772771730729,0.5419575,2076.7,2076.2,0.54612538]
[1772771730925,0.54772927,2076.7,2076.2,0.54612538]
[1772771732729,0.5419575,2076.5,2075.7,0.58152428]
[1772771732934,0.5419575,2076.3,2075.7,0.58152428]
[1772771733725,0.5419575,2076.3,2075.7,0.58639943]
[1772771734231,0.5419575,2076.5,2075.7,0.58639943]
[1772771734432,0.5419575,2076.3,2075.7,0.58639943]
[1772771736836,0.54772927,2076.7,2075.7,0.58639943]
[1772771741544,0.5419575,2076.5,2075.7,0.58639943]
[1772771752547,0.5419575,2076.5,2075.7,0.00487515]
[1772771752854,0.5419575,2076.3,2075.7,0.00487515]
[1772771753051,0.5419575,2076.1,2075.5,0.58152428]
[1772771753843,0.5419575,2076.1,2074.8,0.58152428]
[1772771754048,0.5419575,2076.1,2074.8,0.58551533]
[1772771755351,0.5419575,2076.1,2075.0,0.58152428]
[1772771771160,0.5419575,2076.1,2075.2,0.56708218]
[1772771771359,0.58599683,2076.3,2075.2,0.56708218]
[1772771771559,4.00235727,2076.4,2075.2,0.56708218]
[1772771771560,0.58599683,2076.1,2075.2,0.56708218]
[1772771778964,0.58599683,2075.9,2074.9,0.56708218]
[1772771779161,0.58599683,2075.7,2074.9,0.56708218]
[1772771779366,0.58599683,2075.5,2074.8,0.00399105]
[1772771779562,0.58599683,2075.3,2074.8,0.57107323]
[1772771783067,0.58599683,2075.4,2074.8,0.57107323]
[1772771786372,0.58599683,2075.8,2074.8,0.57107323]
[1772771786568,0.58599683,2075.6,2074.8,0.57107323]
[1772771789073,0.58599683,2075.6,2074.8,0.00399105]
[1772771793171,0.56326537,2075.4,2074.5,0.55625426]
[1772771794074,0.56326537,2075.4,2074.5,0.56122615]
[1772771798082,5.92888028,2075.3,2074.5,0.56122615]
[1772771798281,0.56326537,2075.2,2074.5,0.56122615]
[1772771798483,0.56698763,2075.2,2074.5,0.56122615]
[1772771800484,0.56698763,2075.2,2074.5,0.00497189]
[1772771800676,0.56326537,2075.0,2074.2,0.55625426]
[1772771800880,0.56326537,2074.8,2074.2,0.55625426]
[1772771801779,0.56326537,2074.8,2074.2,0.56076811]
[1772771802284,0.56326537,2075.0,2074.2,0.56076811]
[1772771810492,0.56326537,2075.0,2074.3,0.55625426]
[1772771810889,0.56698763,2075.2,2074.7,0.55625426]
[1772771814991,0.56698763,2075.2,2074.5,0.55625426]
[1772771819396,0.56698763,2075.2,2074.7,0.55625426]
[1772771821092,0.55307325,2075.5,2075.1,0.59513488]
[1772771821398,0.55307325,2075.4,2075.1,0.59513488]
[1772771821600,3.99330459,2075.7,2075.2,2.17225505]
[1772771821601,0.27168832,2075.6,2075.2,2.17225505]
[1772771821790,0.27168832,2076.0,2075.5,0.59513488]
[1772771821995,0.27168832,2075.8,2075.3,0.59513488]
[1772771822196,0.27691249,2075.8,2075.3,0.59513488]
[1772771824600,0.26800323,2075.5,2074.9,0.59513488]
[1772771824800,0.26800323,2075.5,2074.7,0.59513488]
[1772771825800,0.26800323,2075.5,2074.8,1.57712017]
[1772771826003,0.26800323,2075.5,2074.9,0.59513488]
[1772771826702,0.26800323,2075.5,2074.7,0.59513488]
[1772771828603,0.26800323,2075.5,2074.9,0.59513488]
[1772771833300,0.274462,2075.6,2074.9,0.59513488]
[1772771835205,6.20648471,2075.5,2074.9,0.59513488]
[1772771835512,0.27484754,2075.5,2074.9,0.59513488]
[1772771835810,0.27484754,2075.2,2074.6,0.59513488]
[1772771852413,0.26849167,2074.8,2074.4,0.56070553]
[1772771852819,1.84561184,2074.9,2074.4,0.56070553]
[1772771853617,0.26849167,2075.0,2074.4,0.56070553]
[1772771853818,5.93514273,2074.9,2074.4,0.56070553]
[1772771854016,1.84561184,2075.1,2074.4,0.56070553]
[1772771854017,0.26849167,2075.0,2074.4,0.56070553]
[1772771854216,5.93540142,2074.9,2074.4,0.56070553]
[1772771854517,1.84382663,2075.1,2074.4,0.56070553]
[1772771854719,5.93648423,2075.0,2074.4,0.56070553]
[1772771854918,5.93648423,2074.9,2074.4,0.56070553]
[1772771855222,1.84382663,2075.1,2074.4,0.56070553]
[1772771855422,5.93552429,2075.0,2074.4,0.56070553]
[1772771855722,5.93552429,2074.9,2074.4,0.56070553]
[1772771855922,6.20223075,2074.9,2074.4,0.56070553]
[1772771856123,0.26670646,2074.9,2074.4,0.56070553]
[1772771857126,0.26267953,2075.0,2074.4,0.56070553]
[1772771857726,5.93484491,2074.9,2074.4,0.56070553]
[1772771857933,0.26267953,2075.0,2074.4,0.56070553]
[1772771859325,0.26343313,2074.6,2074.2,0.56521938]
[1772771859525,1.8405533,2074.5,2074.2,0.00451385]
[1772771859725,0.26343313,2074.4,2074.0,0.55017865]
[1772771859930,1.57712017,2074.5,2073.5,0.56070553]
[1772771859931,0.58782946,2074.2,2073.5,0.56070553]
[1772771860125,2.16494963,2074.1,2073.5,0.56070553]
[1772771860323,0.58782946,2074.0,2073.5,0.56070553]
[1772771860523,0.58782946,2073.8,2072.9,0.56070553]
[1772771860831,0.58782946,2073.6,2072.7,0.56070553]
[1772771861031,0.58782946,2073.4,2072.7,0.56070553]
[1772771861829,0.58782946,2073.4,2072.7,0.56561655]
[1772771862232,0.58782946,2073.0,2072.7,0.00491102]
[1772771862427,0.58782946,2073.0,2072.4,0.56070553]
[1772771863227,0.58782946,2073.0,2072.0,1.57712017]
[1772771863431,0.58782946,2073.0,2072.1,0.56070553]
[1772771864930,0.58782946,2072.8,2072.1,0.56070553]
[1772771866333,2.16494963,2072.8,2072.1,0.56070553]
[1772771866531,0.58782946,2072.7,2072.1,0.56070553]
[1772771868531,0.58782946,2073.3,2072.5,0.56070553]
[1772771868730,0.58782946,2072.9,2072.3,0.56070553]
[1772771869830,1.57712017,2073.2,2072.3,0.56070553]
[1772771870029,0.58782946,2073.3,2072.5,0.56070553]
[1772771870342,0.58782946,2073.6,2072.7,0.56070553]
[1772771872935,0.58782946,2073.9,2072.7,0.56070553]
[1772771875330,0.59388369,2074.0,2072.7,0.56070553]
[1772771877235,0.59388369,2074.0,2072.8,0.56070553]
[1772771878532,0.58782946,2073.8,2072.8,0.56070553]
[1772771881338,0.59433045,2074.0,2072.8,0.56070553]
[1772771881841,0.24109,2073.8,2072.8,0.56070553]
[1772771882035,0.58827622,2073.7,2072.8,0.56070553]
[1772771890234,0.24109,2073.8,2072.8,0.56070553]
[1772771890235,0.58827622,2073.5,2072.8,0.56070553]
[1772771891739,0.58827622,2073.1,2072.3,0.54626215]
[1772771893546,0.58827622,2073.4,2072.3,0.54626215]
[1772771893747,0.58827622,2073.3,2072.3,0.54626215]
[1772771894648,0.58827622,2073.1,2072.3,0.54626215]
[1772771894848,0.58827622,2072.9,2072.1,0.54626215]
[1772771895248,0.58827622,2072.9,2072.0,0.55112441]
[1772771896341,0.58827622,2072.7,2072.0,0.55112441]
[1772771898445,0.58827622,2072.9,2072.0,0.55112441]
[1772771898642,3.99330459,2073.0,2072.0,0.55112441]
[1772771898643,6.52691651,2072.8,2072.0,0.55112441]
[1772771898844,0.58827622,2072.8,2072.0,0.55112441]
[1772771899545,0.58827622,2073.0,2072.0,0.55112441]
[1772771899750,0.58827622,2072.8,2072.0,0.55112441]
[1772771901148,0.58827622,2073.0,2072.0,0.55112441]
[1772771913954,0.54027816,2072.8,2072.0,0.55112441]
[1772771914153,0.54027816,2072.6,2071.8,1.44760816]
[1772771914458,0.54027816,2072.4,2071.3,0.54848905]
[1772771914660,0.54027816,2072.2,2071.3,0.54848905]
[1772771915151,0.54498769,2072.2,2071.3,0.55412407]
[1772771916361,0.54027816,2072.0,2070.9,0.54848905]
[1772771916555,0.54027816,2071.9,2070.9,0.54848905]
[1772771917056,0.54027816,2072.1,2070.9,0.54848905]
[1772771917454,0.54027816,2072.1,2071.1,0.54848905]
[1772771917849,0.00470953,2072.2,2071.3,0.54848905]
[1772771919252,0.54027816,2072.5,2071.3,0.54848905]
[1772771919457,0.54027816,2072.9,2071.5,0.54848905]
[1772771919657,0.54027816,2072.7,2071.5,0.54848905]
[1772771920052,0.54027816,2073.2,2071.7,0.54848905]
[1772771920248,0.54027816,2073.0,2071.7,0.54848905]
[1772771921152,0.54027816,2072.8,2071.7,0.54848905]
[1772771922761,0.54027816,2073.0,2071.7,0.54848905]
[1772771925772,0.54027816,2072.8,2071.7,0.54848905]
[1772771929974,0.54027816,2072.6,2071.2,0.54848905]